bitfinex-derivatives/quotes_ETHF0:USTF0_20250824
["timestamp","ask_amount","ask_price","bid_price","bid_amount"]
[1756059408053,0.4624,4933.7,4932.6,0.7605]
[1756059408251,0.5624,4933.7,4932.7,0.4453]
[1756059408451,0.5624,4933.7,4931.5,2.68612446]
[1756059408452,0.40555,4933.0,4931.6,1.2058]
[1756059408651,0.40555,4933.0,4932.2,0.40561]
[1756059408848,0.40555,4933.0,4932.4,1.2058]
[1756059409156,0.40552,4933.4,4932.4,0.4056]
[1756059409358,0.5624,4933.7,4932.5,1.2058]
[1756059409562,0.5624,4933.5,4932.7,1.2058]
[1756059409853,0.3726,4933.6,4932.7,1.2058]
[1756059409854,0.1,4933.6,4933.1,1.2058]
[1756059410055,0.40554,4933.2,4932.4,0.40559]
[1756059410357,0.40554,4933.1,4932.5,0.4443]
[1756059410559,0.1,4934.3,4933.3,0.7605]
[1756059410749,0.40549,4933.7,4933.4,0.4453]
[1756059410955,0.40549,4933.7,4932.8,0.40556]
[1756059411155,0.40549,4933.7,4933.6,1.2058]
[1756059411356,0.96789,4933.7,4933.6,0.4453]
[1756059411860,0.96789,4933.7,4933.6,1.2058]
[1756059412356,0.40558,4932.6,4932.3,0.7605]
[1756059412557,0.1,4933.1,4930.7,1.01434]
[1756059412755,0.40558,4932.7,4932.0,0.40562]
[1756059412961,0.4624,4933.2,4932.2,0.3162]
[1756059413156,0.4624,4933.2,4932.4,0.4453]
[1756059413351,0.40556,4932.8,4932.6,0.4443]
[1756059413557,0.40556,4932.8,4932.7,1.2058]
[1756059413858,0.50555,4933.1,4932.7,1.2058]
[1756059414058,0.40557,4932.8,4932.1,0.40561]
[1756059414259,0.40557,4932.8,4932.2,0.40561]
[1756059414662,0.1,4934.8,4932.6,0.8896]
[1756059414958,0.4624,4934.9,4934.0,1.2058]
[1756059415158,0.4624,4934.9,4933.9,0.40547]
[1756059415159,0.40542,4934.6,4933.9,0.40547]
[1756059415360,0.1,4935.3,4934.4,0.7605]
[1756059415555,0.40541,4934.7,4934.5,0.4453]
[1756059415755,0.40541,4934.7,4933.8,0.40548]
[1756059415756,0.40545,4934.2,4933.8,1.2058]
[1756059415960,0.40543,4934.4,4934.0,1.2058]
[1756059416152,0.40543,4934.5,4934.1,0.4453]
[1756059416353,0.5624,4934.9,4932.9,0.4443]
[1756059416566,1.01354,4934.7,4933.2,0.7615]
[1756059416862,1.57597,4934.6,4932.3,1.014]
[1756059417157,0.5624,4934.6,4933.4,0.40551]
[1756059417357,0.5624,4934.6,4933.6,0.3162]
[1756059417557,0.5624,4934.6,4933.6,0.7605]
[1756059417759,0.40545,4934.3,4933.6,0.40549]
[1756059417958,1.01351,4934.8,4933.4,0.8896]
[1756059418165,0.4624,4934.6,4933.7,0.4453]
[1756059418360,0.40547,4934.0,4933.8,1.2058]
[1756059418566,0.40545,4934.2,4934.0,1.2058]
[1756059418767,0.5624,4934.7,4934.1,0.7605]
[1756059418967,0.40547,4934.1,4933.8,1.2058]
[1756059419163,0.40547,4934.1,4933.6,0.40549]
[1756059419365,0.40547,4934.1,4933.8,1.2058]
[1756059419558,0.40547,4934.1,4933.9,1.2058]
[1756059419757,0.40544,4934.3,4933.9,1.2058]
[1756059419962,0.40544,4934.3,4933.8,0.40548]
[1756059419963,0.40543,4934.4,4934.0,0.3162]
[1756059420160,0.40543,4934.4,4933.7,0.40548]
[1756059420161,0.835,4934.2,4933.7,0.4443]
[1756059420360,0.5624,4933.3,4933.2,0.4453]
[1756059420561,0.40549,4933.7,4933.2,1.61133]
[1756059420764,0.4624,4934.4,4933.6,0.7615]
[1756059420957,0.40545,4934.2,4933.9,0.3162]
[1756059421266,0.5624,4934.4,4934.3,0.4453]
[1756059421459,0.5624,4934.4,4933.7,0.4443]
[1756059421460,0.0068909,4934.5,4933.7,0.8896]
[1756059421767,0.40544,4934.3,4933.9,0.40547]
[1756059421966,0.0068909,4934.5,4934.1,0.40545]
[1756059422156,0.0068909,4934.5,4934.0,1.2058]
[1756059422157,0.40545,4934.3,4934.0,1.2058]
[1756059422357,0.40545,4934.3,4934.2,1.2058]
[1756059422961,0.50544,4934.4,4934.2,0.7605]
[1756059423167,0.5624,4934.4,4933.8,0.4453]
[1756059423368,0.40547,4934.0,4933.8,0.4453]
[1756059423568,0.5624,4933.9,4933.8,0.4453]
[1756059424266,0.1,4933.9,4933.8,1.2058]
[1756059424458,0.4624,4934.4,4933.2,0.40553]
[1756059424658,0.0068909,4934.5,4933.2,0.40553]
[1756059424659,0.1,4933.5,4933.2,0.4453]
[1756059424864,0.4624,4933.7,4933.0,1.2058]
[1756059425167,0.4624,4933.7,4933.2,0.40553]
[1756059425467,0.4055,4933.6,4933.5,1.2058]
[1756059425766,0.9679,4933.6,4933.5,1.2058]
[1756059425964,0.9679,4933.6,4933.5,0.4453]
[1756059426165,0.40553,4933.2,4933.0,0.4453]
[1756059426365,0.1,4933.1,4933.0,0.7605]
[1756059426964,0.40546,4934.1,4933.6,0.40549]
[1756059427269,0.40544,4934.3,4933.9,1.1851]
[1756059427463,0.40544,4934.3,4934.1,0.762]
[1756059427660,0.40544,4934.3,4934.2,1.1851]
[1756059428165,0.40544,4934.4,4933.6,0.3485]
[1756059428363,0.40544,4934.3,4933.9,0.40547]
[1756059428560,0.40545,4934.2,4933.9,0.40547]
[1756059428771,0.40545,4934.2,4934.1,1.1851]
[1756059429464,0.4123209,4934.5,4934.1,1.1851]
[1756059429669,0.4123109,4934.5,4934.4,1.1851]
[1756059430272,0.0068909,4934.5,4934.4,1.1851]
[1756059430573,0.1055909,4934.5,4934.4,1.1851]
[1756059431168,0.0068909,4934.5,4934.4,1.1851]
[1756059431570,0.5316909,4934.5,4934.4,1.1851]
[1756059431770,0.5316909,4934.5,4934.4,0.4231]
[1756059432276,0.5248,4933.5,4933.4,0.8366]
[1756059432567,0.40547,4934.0,4933.8,0.3485]
[1756059432774,0.40547,4934.0,4933.8,0.4231]
[1756059432775,0.93027,4934.0,4933.8,0.4231]
[1756059433070,0.40547,4934.0,4933.8,1.1851]
[1756059433263,0.40548,4933.9,4933.8,1.1851]
[1756059433461,0.50417,4934.0,4932.5,0.16473649]
[1756059433663,0.3662,4934.1,4933.4,0.40551]
[1756059433864,0.0987,4934.0,4933.7,0.8366]
[1756059434059,0.40549,4933.8,4933.5,0.7716]
[1756059434272,0.5248,4934.1,4933.8,1.1851]
[1756059434462,0.40547,4934.0,4933.5,0.4055]
[1756059434668,0.40551,4933.5,4933.2,0.40553]
[1756059434868,0.5248,4934.1,4933.3,0.65357324]
[1756059435071,0.5248,4934.1,4933.4,1.1851]
[1756059435373,0.40549,4933.7,4933.6,1.1851]
[1756059436073,1.90474,4933.7,4933.1,0.762]
[1756059436267,0.40552,4933.3,4933.2,0.6714989]
[1756059436465,0.5248,4934.1,4933.4,0.762]
[1756059436669,0.4434527,4934.0,4933.6,0.762]
[1756059436972,0.4055,4933.7,4933.3,0.40552]
[1756059437267,0.40549,4933.8,4933.6,1.5906]
[1756059437460,0.40549,4933.8,4933.7,1.43369821]
[1756059438874,0.40547,4934.0,4933.9,0.762]
[1756059439065,0.5316909,4934.5,4933.9,0.762]
[1756059439066,0.0068909,4934.5,4933.9,1.43369821]
[1756059439272,1.29646,4934.1,4934.0,0.24859821]
[1756059439574,1.29646,4934.1,4933.5,1.1851]
[1756059439575,0.4055,4933.6,4933.5,1.1851]
[1756059439874,0.40549,4933.7,4933.5,1.84284791]
[1756059440172,0.40547,4934.0,4933.9,0.8366]
[1756059440477,0.40545,4934.2,4933.9,0.65771791]
[1756059440672,0.0068909,4934.5,4934.4,0.0202]
[1756059440869,0.5324,4936.9,4935.8,0.4231]
[1756059441070,0.40528,4936.4,4936.1,0.8366]
[1756059441281,0.1063,4937.5,4936.5,0.3485]
[1756059441472,0.40524,4936.7,4936.6,1.1851]
[1756059441776,0.5324,4937.2,4936.6,1.1851]
[1756059441777,0.4052,4937.2,4936.6,0.25154947]
[1756059441964,0.40522,4937.1,4936.8,1.1851]
[1756059442166,0.40522,4937.1,4937.0,1.1851]
[1756059442365,0.40521,4937.1,4936.4,0.40527]
[1756059442676,0.40525,4936.7,4936.5,0.251145]
[1756059442874,0.1063,4937.2,4936.7,1.1851]
[1756059443072,0.40526,4936.6,4935.9,0.4053]
[1756059443268,0.40521,4937.1,4936.3,0.40527]
[1756059443466,1.43699063,4939.7,4938.2,0.4231]
[1756059443670,0.2063,4940.2,4938.5,0.7716]
[1756059443966,0.51541178,4939.0,4938.9,0.4231]
[1756059444174,0.94151178,4939.0,4938.9,0.4231]
[1756059444471,0.00405178,4939.0,4938.9,1.1851]
[1756059445070,0.53645178,4939.0,4938.9,0.4231]
[1756059445264,0.40511,4938.3,4938.2,1.1851]
[1756059445574,0.00405178,4939.0,4937.6,0.40517]
[1756059445771,0.00405178,4939.0,4938.2,2.60599104]
[1756059445965,0.40504,4939.2,4938.4,0.3485]
[1756059446165,1.53852,4940.2,4938.2,7.01111104]
[1756059446166,0.1,4940.2,4938.7,0.0202]
[1756059446368,0.40497,4940.1,4939.0,0.40505]
[1756059446575,0.1,4940.2,4939.4,0.4135]
[1756059446775,0.40498,4939.9,4939.4,0.1658048]
[1756059446980,0.405,4939.7,4939.6,1.1851]
[1756059447172,0.5261,4940.2,4938.2,29.198]
[1756059447173,0.1,4940.2,4939.7,0.4231]
[1756059447372,0.405,4939.7,4938.4,1.1671]
[1756059447677,0.1,4940.2,4938.6,0.0202]
[1756059447872,0.405,4939.8,4938.8,0.762]
[1756059448072,1.01224,4941.0,4939.1,0.762]
[1756059448272,0.40497,4940.1,4938.9,2.63514002]
[1756059448471,0.2063,4940.5,4937.7,19.225]
[1756059448673,0.2063,4940.5,4938.0,0.0202]
[1756059448867,0.40501,4939.6,4938.5,2.99570868]
[1756059449069,0.2063,4940.5,4938.4,0.762]
[1756059449271,0.6324,4938.5,4937.6,0.4135]
[1756059449476,0.6324,4938.5,4935.5,29.191]
[1756059449477,1.03755,4937.8,4937.7,0.4231]
[1756059449682,0.40519,4937.4,4936.6,0.16560731]
[1756059449880,0.40522,4937.0,4936.7,0.3485]
[1756059450073,0.6324,4937.8,4935.7,0.3687]
[1756059450074,0.40519,4937.4,4935.7,0.3687]
[1756059450270,0.40521,4937.2,4936.1,0.40529]
[1756059450482,0.40522,4937.0,4936.3,1.1851]
[1756059450672,0.6324,4937.8,4936.2,0.3485]
[1756059450873,0.6324,4937.8,4936.1,0.40529]
[1756059450874,0.2063,4938.3,4936.0,1.1851]
[1756059451074,19.313,4939.4,4935.7,0.16237374]
[1756059451075,0.40507,4938.9,4937.8,0.40515]
[1756059451274,0.40507,4938.9,4938.1,0.8366]
[1756059451470,0.40507,4938.9,4937.9,0.40514]
[1756059451669,0.40504,4939.3,4938.1,0.4231]
[1756059451876,0.2063,4940.2,4938.8,0.40506]
[1756059452080,0.40498,4939.9,4939.0,0.40505]
[1756059452371,1.21852,4941.1,4939.1,0.40504]
[1756059452575,0.40497,4940.0,4939.6,0.4135]
[1756059452873,0.3631,4941.5,4939.7,0.4231]
[1756059452874,0.61109,4939.8,4939.7,0.4231]
[1756059453075,0.40501,4939.5,4939.4,0.4231]
[1756059453280,0.40501,4939.5,4939.4,1.1851]
[1756059453480,0.61111,4939.5,4939.4,0.8366]
[1756059453671,4.6322,4939.5,4939.0,0.4231]
[1756059453977,0.6322,4939.1,4938.3,0.4231]
[1756059454178,0.4051,4938.4,4938.3,0.4231]
[1756059454476,0.4051,4938.4,4937.3,29.184]
[1756059454477,0.6322,4938.4,4937.6,0.762]
[1756059454682,0.40511,4938.3,4937.7,0.4231]
[1756059454881,0.6322,4938.4,4937.7,0.4231]
[1756059455085,0.40507,4938.8,4937.9,0.4231]
[1756059455270,0.40507,4938.8,4938.1,0.4231]
[1756059455475,0.83111,4939.6,4938.0,1.1851]
[1756059455679,0.83111,4939.6,4937.2,0.0202]
[1756059455680,0.2061,4939.5,4938.7,0.762]
[1756059455878,0.40511,4938.4,4938.1,0.7716]
[1756059456084,0.40511,4938.4,4935.8,21.27901]
[1756059456085,0.3577,4939.0,4937.9,1.1851]
[1756059456274,0.4261,4939.0,4938.3,0.762]
[1756059456477,0.6322,4939.7,4938.5,0.762]
[1756059456683,0.6322,4938.7,4938.6,0.4231]
[1756059456876,0.4051,4938.4,4937.8,0.40515]
[1756059457081,0.40506,4939.0,4938.3,0.733]
[1756059457376,0.40506,4939.0,4938.4,0.4124]
[1756059457679,0.40507,4938.8,4938.7,0.4124]
[1756059457883,0.40506,4939.0,4938.3,0.40511]
[1756059458084,0.40507,4938.9,4938.3,0.40511]
[1756059458480,0.40508,4938.8,4938.1,0.40513]
[1756059458682,0.4051,4938.5,4937.8,0.40515]
[1756059458879,0.4051,4938.5,4937.9,0.733]
[1756059459084,0.61038,4938.8,4937.9,1.1454]
[1756059459280,0.4051,4938.5,4937.9,1.1454]
[1756059459478,1.01255,4939.5,4928.2,10.48522]
[1756059459479,0.40514,4937.9,4937.4,0.4124]
[1756059459681,0.6491,4938.5,4937.5,0.733]
[1756059459982,0.6491,4938.5,4937.8,0.4124]
[1756059459983,0.4051,4938.5,4937.8,0.4124]
[1756059460185,0.4438,4938.8,4938.1,1.1454]
[1756059460383,0.40509,4938.6,4938.2,0.4124]
[1756059460590,0.4051,4938.6,4937.9,0.40514]
[1756059460791,0.4051,4938.5,4938.0,1.1454]
[1756059460988,0.4051,4938.5,4937.9,0.40514]
[1756059461293,0.6491,4938.7,4938.1,0.733]
[1756059461294,0.40512,4938.3,4938.1,0.733]
[1756059461485,0.40511,4938.3,4938.2,0.4124]
[1756059461683,1.05424,4937.9,4937.8,0.4124]
[1756059461883,0.40511,4938.4,4937.8,0.733]
[1756059462083,0.40512,4938.3,4937.7,0.40515]
[1756059462389,0.40514,4938.0,4937.9,1.1454]
[1756059462795,0.61044,4938.0,4937.9,1.1454]
[1756059462991,4.7995,4938.0,4937.0,0.4124]
[1756059463188,0.42532,4938.2,4938.0,0.0242]
[1756059463796,0.40527,4936.4,4936.3,0.4124]
[1756059463993,1.01301,4937.3,4936.3,0.8207]
[1756059464191,0.40526,4936.5,4936.1,0.4083]
[1756059464491,0.40527,4936.4,4936.3,0.4124]
[1756059464698,1.01312,4936.7,4935.8,0.4083]
[1756059464886,0.40527,4936.5,4935.9,0.4124]
[1756059465091,19.3682,4938.4,4936.1,0.40529]
[1756059465385,19.3682,4938.4,4936.0,0.733]
[1756059465386,1.01297,4937.4,4936.0,0.733]
[1756059465591,0.40527,4936.5,4936.1,0.4124]
[1756059465788,0.40528,4936.3,4936.2,1.1454]
[1756059465999,0.40528,4936.3,4936.2,0.8207]
[1756059466298,0.40526,4936.5,4936.3,0.4083]
[1756059466499,0.40526,4936.5,4936.4,0.4124]
[1756059466698,5.01316,4936.5,4934.5,0.4083]
[1756059466888,0.40529,4936.2,4934.8,0.3247]
[1756059467090,0.40531,4936.0,4935.3,0.40535]
[1756059467297,0.40531,4936.0,4935.4,0.4083]
[1756059467495,0.40531,4936.0,4935.5,0.4124]
[1756059467797,1.01298,4937.4,4935.6,0.4124]
[1756059468099,1.01304,4937.1,4935.7,1.1454]
[1756059468290,0.40522,4937.0,4935.8,0.4124]
[1756059468500,1.01304,4937.1,4935.8,0.4124]
[1756059468693,1.01304,4937.1,4935.8,0.733]
[1756059468998,0.40531,4936.0,4935.9,0.4124]
[1756059469503,0.40531,4936.0,4935.2,1.13837]
[1756059469504,4.0,4936.0,4935.2,0.733]
[1756059469696,0.40536,4935.3,4935.2,0.4124]
[1756059469893,0.40543,4934.4,4934.2,0.4124]
[1756059470400,0.40543,4934.4,4934.1,0.50152781]
[1756059470596,0.40543,4934.4,4934.2,0.4124]
[1756059471098,0.40543,4934.4,4934.3,0.4124]
[1756059471403,0.40545,4934.2,4934.1,0.09322781]
[1756059471803,1.01343,4935.2,4934.1,0.09322781]
[1756059471994,0.40544,4934.3,4934.2,0.4124]
[1756059472501,4.40544,4934.3,4934.1,0.09322781]
[1756059472899,4.0,4934.2,4934.1,0.09322781]
[1756059473301,4.0,4934.2,4934.1,7.81e-06]
[1756059473604,4.0202,4934.2,4934.1,7.81e-06]
[1756059473804,1.0138,4933.4,4932.2,0.4124]
[1756059474008,0.4056,4932.4,4932.3,0.4124]
[1756059474502,0.40557,4932.8,4932.3,0.4124]
[1756059474695,1.01372,4933.8,4932.1,0.4083]
[1756059474900,0.0202,4933.4,4931.6,0.4124]
[1756059475198,0.40565,4931.8,4931.6,0.4124]
[1756059475404,29.188,4933.4,4931.2,0.4124]
[1756059475601,0.40565,4931.8,4931.6,0.4124]
[1756059475996,19.342,4932.7,4931.1,0.4124]
[1756059476198,0.40565,4931.7,4931.2,0.40569]
[1756059476399,0.40569,4931.3,4930.8,0.40573]
[1756059476598,0.40575,4930.6,4930.4,0.3247]
[1756059476802,0.40574,4930.8,4930.5,0.4124]
[1756059477001,0.40579,4930.2,4930.0,0.4124]
[1756059477196,0.40581,4929.9,4929.4,0.8207]
[1756059477401,0.40581,4929.9,4929.6,0.4124]
[1756059477604,0.40584,4929.5,4929.1,0.3247]
[1756059477907,0.0202,4930.4,4928.4,1.1454]
[1756059478108,0.4059,4928.7,4928.4,0.8207]
[1756059478312,0.4059,4928.7,4928.5,0.4124]
[1756059478703,1.01444,4930.3,4928.6,0.4124]
[1756059478903,0.40587,4929.1,4928.7,0.8207]
[1756059479105,0.40585,4929.4,4928.8,0.4124]
[1756059479305,0.40586,4929.2,4928.3,0.73063]
[1756059479506,0.40587,4929.1,4928.8,0.4124]
[1756059480000,0.40587,4929.1,4928.9,0.4124]
[1756059480214,20.30899,4930.3,4928.3,0.4124]
[1756059480412,0.40592,4928.5,4928.3,0.4124]
[1756059480804,0.40596,4928.0,4927.7,0.4124]
[1756059481001,1.03485,4929.3,4927.7,0.4124]
[1756059481310,0.40603,4927.1,4927.0,0.4124]
[1756059481506,0.40607,4926.7,4926.5,0.4124]
[1756059481705,0.40607,4926.7,4926.0,0.7371]
[1756059482108,0.40608,4926.6,4926.0,0.7371]
[1756059482304,1.43699063,4931.6,4926.1,0.4083]
[1756059482513,0.406,4927.5,4926.8,0.3247]
[1756059482816,0.40603,4927.1,4926.9,0.4124]
[1756059483106,0.40599,4927.6,4926.9,0.8207]
[1756059483308,20.29375,4929.1,4926.8,0.3247]
[1756059483309,1.42087,4928.0,4926.8,0.3247]
[1756059483505,1.01489,4928.1,4926.5,0.4083]
[1756059483713,0.40607,4926.7,4926.5,0.4083]
[1756059484011,1.01474,4928.8,4926.8,0.4124]
[1756059484307,0.40608,4926.6,4925.6,0.40616]
[1756059484506,1.01488,4928.2,4926.3,0.40609]
[1756059484707,0.40608,4926.6,4926.4,0.4083]
[1756059484913,1.01491,4928.0,4925.7,0.3247]
[1756059484914,0.40612,4926.1,4925.7,0.3247]
[1756059485110,0.40608,4926.6,4926.1,0.4083]
[1756059485508,0.0202,4929.6,4926.2,4.0]
[1756059485718,0.40601,4927.5,4926.7,1.55146]
[1756059485908,1.01489,4928.1,4926.7,0.4124]
[1756059486211,0.406,4927.5,4926.8,0.40606]
[1756059486414,0.406,4927.5,4927.4,1.1454]
[1756059486613,0.40595,4928.1,4927.4,0.733]
[1756059486908,0.40595,4928.1,4928.0,1.2036]
[1756059487115,0.40586,4929.3,4928.6,0.4059]
[1756059487303,0.40587,4929.2,4928.4,0.40592]
[1756059487503,1.01437,4930.7,4929.1,0.4271]
[1756059487504,0.4058,4930.0,4929.1,0.4271]
[1756059487809,0.0018,4930.6,4929.2,0.3327]
[1756059488109,0.0018,4931.4,4930.0,0.40579]
[1756059488313,0.0018,4931.4,4930.8,0.7598]
[1756059488508,0.0018,4931.4,4930.8,0.4271]
[1756059488712,0.4057,4931.1,4931.0,0.7765]
[1756059488909,0.4057,4931.2,4931.1,1.2036]
[1756059489109,0.40574,4930.6,4930.5,0.8709]
[1756059489311,0.0018,4930.6,4929.8,0.4438]
[1756059489509,0.0018,4930.6,4927.4,1.01501]
[1756059489510,0.0018,4930.3,4929.3,0.7598]
[1756059489815,0.40583,4929.6,4929.0,0.3327]
[1756059490013,0.40581,4929.9,4929.0,0.40588]
[1756059490209,19.4488,4930.9,4929.3,0.40585]
[1756059490404,0.4058,4930.0,4929.3,0.40585]
[1756059490804,0.4058,4930.0,4929.7,1.2036]
[1756059491017,0.4058,4930.0,4929.9,1.2036]
[1756059491512,0.40576,4930.5,4929.9,1.2036]
[1756059491714,0.4057,4931.2,4930.3,0.40577]
[1756059492010,0.40571,4931.1,4929.3,1.2036]
[1756059492216,0.40569,4931.4,4930.7,0.8709]
[1756059492413,0.40565,4931.8,4931.0,0.4271]
[1756059492610,0.40561,4932.3,4931.4,0.40568]
[1756059492810,0.0018,4932.5,4929.8,0.0202]
[1756059492811,1.01579,4932.5,4929.8,0.0202]
[1756059493011,0.40567,4931.6,4930.8,0.40572]
[1756059493314,0.40571,4931.1,4930.6,0.3327]
[1756059493517,0.0018,4931.4,4929.6,0.83293]
[1756059493708,0.0018,4930.8,4929.3,29.229]
[1756059493908,0.0018,4930.8,4929.5,0.4271]
[1756059494214,0.0018,4930.8,4929.4,0.3327]
[1756059494420,0.40577,4930.3,4928.7,0.0202]
[1756059494615,0.0018,4930.8,4929.7,1.2036]
[1756059494819,0.40584,4929.5,4929.2,0.4271]
[1756059495017,0.40583,4929.7,4929.2,1.2036]
[1756059495316,0.40581,4929.8,4929.1,0.40587]
[1756059495619,0.40583,4929.6,4929.5,1.2036]
[1756059495823,0.0018,4931.2,4930.0,1.2036]
[1756059496116,2.02747,4933.8,4931.0,0.7765]
[1756059496117,0.40568,4931.4,4931.0,0.7765]
[1756059496319,0.0018,4932.3,4930.8,0.40572]
[1756059496320,0.40566,4931.6,4930.8,0.40572]
[1756059496519,0.0018,4932.3,4931.3,1.2036]
[1756059496719,0.40568,4931.4,4931.3,1.2036]
[1756059496915,20.48995,4932.7,4930.1,0.4438]
[1756059496916,0.40566,4931.7,4930.1,0.4438]
[1756059497118,0.40566,4931.7,4931.3,0.7598]
[1756059497318,0.40566,4931.7,4931.1,0.4057]
[1756059497522,0.0018,4932.5,4931.3,0.40569]
[1756059497722,0.0018,4932.5,4931.5,1.2036]
[1756059498223,0.0018,4932.5,4931.6,0.4271]
[1756059498418,0.0018,4932.5,4931.5,0.40567]
[1756059498419,0.40563,4932.1,4931.5,0.40567]
[1756059498625,0.40563,4932.1,4931.7,1.2036]
[1756059498828,0.40561,4932.3,4931.0,0.7765]
[1756059499121,19.476,4932.7,4931.4,1.2036]
[1756059499323,0.40561,4932.3,4930.5,1.2036]
[1756059499518,0.40563,4932.1,4930.6,1.01436]
[1756059499719,0.40563,4932.1,4931.8,1.2036]
[1756059499922,19.476,4932.7,4931.9,1.2036]
[1756059500130,0.40558,4932.6,4932.1,0.8709]
[1756059500426,19.476,4932.7,4931.0,1.01429]
[1756059500427,19.476,4932.7,4932.5,0.3327]
[1756059500724,0.40557,4932.8,4932.3,0.4056]
[1756059500924,20.46568,4934.0,4932.7,0.3327]
[1756059501224,0.40552,4933.3,4932.7,0.40557]
[1756059501431,0.40552,4933.3,4933.1,1.2036]
[1756059501624,0.40551,4933.5,4933.3,1.2036]
[1756059501825,0.40551,4933.5,4933.4,1.2036]
[1756059502224,0.40551,4933.5,4933.4,0.8709]
[1756059502630,0.40551,4933.5,4933.4,1.2036]
[1756059502827,0.4055,4933.6,4933.5,1.2036]
[1756059503031,1.43699063,4936.3,4933.5,1.2036]
[1756059503231,0.3235,4935.8,4935.2,0.3327]
[1756059503425,0.40533,4935.7,4934.3,0.8709]
[1756059503625,0.4871104,4936.7,4935.6,1.2036]
[1756059503829,0.1636104,4936.7,4935.9,0.4271]
[1756059504126,0.40518,4937.5,4936.9,0.3327]
[1756059504329,0.40521,4937.2,4937.0,0.8709]
[1756059504525,0.3235,4938.8,4937.1,0.7765]
[1756059504725,0.40519,4937.4,4937.3,0.7765]
[1756059504926,0.3235,4938.0,4937.3,0.8709]
[1756059505225,0.3235,4938.0,4936.8,0.4438]
[1756059505424,0.40518,4937.5,4936.9,0.4438]
[1756059505627,0.3235,4938.0,4936.9,0.4438]
[1756059506031,0.40521,4937.2,4936.9,0.4438]
[1756059506334,0.40519,4937.4,4936.8,0.4271]
[1756059506632,0.40522,4937.0,4936.3,0.8709]
[1756059506827,0.40522,4937.0,4936.4,1.2036]
[1756059507024,0.40524,4936.8,4935.9,0.7765]
[1756059507224,0.3235,4937.5,4936.2,0.4271]
[1756059507434,0.40518,4937.6,4936.9,0.4271]
[1756059507629,0.40518,4937.6,4935.4,0.0202]
[1756059507833,0.3235,4938.3,4937.0,0.3327]
[1756059508028,0.3235,4938.3,4937.2,0.4271]
[1756059508232,0.40521,4937.1,4937.0,1.2036]
[1756059508437,0.40517,4937.7,4937.2,0.4438]
[1756059508729,0.40517,4937.6,4936.7,0.40524]
[1756059508928,0.40519,4937.4,4936.7,0.40524]
[1756059509324,0.3235,4939.0,4937.3,0.40519]
[1756059509530,0.3235,4939.0,4937.6,0.7598]
[1756059509738,0.3235,4939.0,4937.3,0.40519]
[1756059509739,0.40513,4938.1,4937.3,0.40519]
[1756059509930,0.40513,4938.1,4937.5,0.40518]
[1756059510230,0.3235,4938.6,4936.3,1.01318]
[1756059510231,0.4051,4938.6,4937.7,0.40516]
[1756059510432,0.1,4940.2,4937.6,0.7598]
[1756059510632,0.40503,4939.4,4938.7,1.2036]
[1756059510929,0.40504,4939.3,4938.7,0.40507]
[1756059511129,0.3235,4940.1,4939.0,0.4438]
[1756059511335,0.405,4939.7,4939.1,0.4271]
[1756059511531,0.405,4939.7,4936.9,1.01306]
[1756059511532,0.3235,4940.1,4938.5,0.4271]
[1756059511731,0.40498,4940.0,4938.5,0.4271]
[1756059511927,0.3235,4939.6,4937.5,1.01295]
[1756059512235,0.3235,4939.6,4937.1,1.01303]
[1756059512438,0.3235,4939.6,4938.7,0.4271]
[1756059512735,0.3235,4939.3,4938.6,0.4438]
[1756059512926,0.3235,4939.3,4938.7,0.7765]
[1756059512927,0.40507,4938.9,4938.7,0.7765]
[1756059513130,0.40507,4938.9,4938.8,1.2036]
[1756059513332,0.40507,4938.9,4938.8,0.8709]
[1756059513842,0.72857,4938.9,4938.8,0.8709]
[1756059514037,0.72857,4938.9,4938.8,0.4271]
[1756059515637,0.40506,4938.9,4938.8,1.2036]
[1756059516626,0.40506,4938.9,4938.8,0.8709]
[1756059516627,0.72856,4938.9,4938.8,0.8709]
[1756059516828,0.40505,4939.0,4938.9,1.1441]
[1756059517034,0.40505,4939.0,4938.9,0.8281]
[1756059517035,0.74175,4939.0,4938.9,0.8281]
[1756059517333,0.40505,4939.0,4938.9,1.1441]
[1756059517741,0.7418,4938.5,4938.4,0.8281]
[1756059518039,0.40509,4938.6,4938.1,1.54922]
[1756059518228,0.40509,4938.6,4938.2,0.4415]
[1756059518434,0.4051,4938.5,4938.4,0.8281]
[1756059518837,0.40508,4938.8,4938.4,1.1441]
[1756059519034,0.40508,4938.8,4938.3,0.40511]
[1756059519234,0.40508,4938.8,4938.7,1.1441]
[1756059519849,0.74178,4938.8,4938.7,0.3866]
[1756059521643,0.40508,4938.8,4938.7,1.1441]
[1756059522144,0.3367,4939.3,4938.9,0.8281]
[1756059522339,19.454,4939.8,4939.0,1.1441]
[1756059522538,0.74174,4939.2,4939.1,0.8281]
[1756059523448,0.40498,4939.9,4939.3,0.40502]
[1756059523647,0.40498,4939.9,4939.6,0.8281]
[1756059523851,0.40498,4939.9,4939.8,1.1441]
[1756059524146,0.1,4940.2,4939.2,1.1441]
[1756059524338,0.40498,4940.0,4939.5,0.40501]
[1756059524533,0.40498,4940.0,4939.6,0.405]
[1756059524743,0.50496,4940.2,4940.1,0.7575]
[1756059524945,0.50496,4940.2,4940.1,1.1441]
[1756059525344,0.1,4940.2,4940.1,1.1441]